Cogmind - Beta 14 @@@ ROGUE MODE // 2024.08.23 @ 16:10:00 Player: cabin Result: Destroyed by S-10 Pest with Light Assault Rifle Performance ------------- Evolutions (1) 500 Regions Visited (2) 400 Robots Destroyed (22) 110 Value Destroyed (565) 565 Prototype IDs (1) 20 Alien Tech Used (0) 0 Bonus (0) 0 TOTAL SCORE: 1595 Bonus ------- None Cogmind --------- Core Integrity 0/400 Matter 280/300 Energy 305/305 System Corruption 15% Temperature Cool (0) Movement Core (300) Ox5 Location -9/Materials Parts ------- > --- POWER (2) -------- Light Ion Engine Heavy Ion Engine > --- PROPULSION (2) --- Aluminum Leg > --- UTILITY (2) ------ Heat Sink > --- WEAPON (3) ------- Spread Laser Heavy Assault Rifle > --- INVENTORY (5) ---- Ion Engine Light Ion Engine Improved Ion Engine Hover Unit Flail Peak State ------------ > --- POWER ------------ Ion Engine Improved Ion Engine > --- PROPULSION ------- Aluminum Leg Hover Unit > --- UTILITY ---------- Structural Scanner Sensor Array > --- WEAPON ----------- EM Shotgun EM Shotgun Flail > --- INVENTORY -------- Light Ion Engine Flail [Rating: 13] Favorites ----------- Power Ion Engine Engine Ion Engine Propulsion Aluminum Leg Leg Aluminum Leg Hover Unit Backup Propulsion I Flight Unit VTOL Module Utility Heat Sink Device Heat Sink Protection Light Armor Plating Weapon Flail Energy Gun Small Laser Ballistic Gun Light Assault Rifle Ballistic Cannon Light Cannon Impact Weapon Flail Build | -11 -10 -9 ------- Run | Yrd Mat Mat Slots Evolved 2 | . . 2 Power 1 | . . 1 Propulsion . | . . . Utility . | . . . Weapon 1 | . . 1 Parts Attached 39 | 5 12 22 Power 10 | 1 1 8 Engine 10 | 1 1 8 Core . | . . . Reactor . | . . . Propulsion 10 | 2 4 4 Treads . | . . . Leg 7 | 2 2 3 Wheel . | . . . Hover 1 | . . 1 Flight 2 | . 2 . Utility 7 | . 3 4 Device 6 | . 3 3 Storage . | . . . Processor . | . . . Hackware . | . . . Protection 1 | . . 1 Artifact . | . . . Weapon 12 | 2 4 6 Energy Gun 5 | 1 . 4 Energy Cannon . | . . . Ballistic Gun 4 | 1 1 2 Ballistic Cannon 1 | . 1 . Launcher . | . . . Special Weapon . | . . . Impact Weapon 2 | . 2 . Slashing Weapon . | . . . Piercing Weapon . | . . . Special Melee Weapon . | . . . Unidentified Prototypes 1 | . . 1 Parts Lost 15 | . 3 12 Power 2 | . . 2 Propulsion 4 | . 2 2 Utility 4 | . . 4 Weapon 5 | . 1 4 Highest Loss Streak 6 | . 2 6 To Critical Strikes . | . . . Average Slot Usage (%) 76 | . 70 81 Engine 17 | . 13 20 Leg 12 | . 12 12 Hover 2 | . . 4 Flight 4 | . 9 . Device 12 | . 12 13 Protection 3 | . . 6 Energy Gun 9 | . 4 13 Ballistic Gun 5 | . 7 3 Impact Weapon 7 | . 8 6 Peak Build Rating 13 | 5 10 13 Average Rating 8 | 4 6 10 On Entrance 3 | . 5 4 Naked Turns . | . . . Heaviest Build 24 | 5 9 24 Greatest Support 20 | 20 20 20 Greatest Overweight (x) 6 | . 2 6 Average Overweight (x) . | . . 1 Largest Inventory Capacity 5 | 5 5 5 Average Capacity 5 | 5 5 5 Most Carried 5 | . 5 5 Average Carried 3 | . 3 3 Final Capacity 5 | 5 5 5 Final Carried 5 | . 5 5 Class Distribution -------------------- 68% | Mutant 16% | Scavenger-Tank 12% | Scavenger-Mutant 3% | Sprinter Dominant Class ---------------- Mutant | -10/Materials Mutant | -9/Materials Resources | -11 -10 -9 ----------- Run | Yrd Mat Mat Matter Collected 652 | 213 103 336 Remotely . | . . . Salvage Created 771 | 93 149 529 Parts 43 | 3 8 32 Haulers Intercepted . | . . . Recyclers Shooed . | . . . Parts Field Recycled . | . . . Retrieved Matter . | . . . Parts Self-Destructed . | . . . Prevented . | . . . Kills | -11 -10 -9 ------- Run | Yrd Mat Mat Combat Hostiles Destroyed 16 | . 5 11 Melee 2 | . 2 . Guns 12 | . 2 10 Classes Destroyed 9 | 1 3 5 Worker 2 | . . 2 Builder 1 | . 1 . Recycler 1 | 1 . . Operator 1 | . . 1 Watcher 1 | . . 1 Swarmer 3 | . 3 . Grunt 9 | . 2 7 Brawler 1 | . . 1 Sentry 3 | . . 3 Best Kill Streak 4 | 1 3 4 Combat Bots Only 4 | . 3 4 Max Kills in Single Turn 2 | 1 1 2 Gunslinging . | . . . Exploded . | . . . Melee 1 | . 1 . Uniques/NPCs Destroyed . | . . . Combat | -11 -10 -9 -------- Run | Yrd Mat Mat Hostile Shots Fired 182 | . 58 124 Missed 51 | . 23 28 Damage Taken 1780 | . 369 1411 Core 492 | . 88 404 Absorbed by Shields . | . . . Regen/Repaired (Parts) 32 | . . 32 Core Remaining (%) 82 | 100 64 . Volleys Fired 55 | 3 18 34 Largest 3 | 2 2 3 Hottest 128 | 60 60 128 Shots Fired 93 | 6 32 55 Gun 93 | 6 32 55 Cannon . | . . . Launcher . | . . . Special . | . . . Kinetic 30 | 3 18 9 Thermal 49 | 3 14 32 Explosive . | . . . Electromagnetic 14 | . . 14 Robot Hit Streak 9 | 2 9 6 Robot Miss Streak 3 | 2 1 3 Penetration Max . | . . . Secondary Targets 1 | . . 1 Max Gunslinging Chain 1 | . . 1 Shots Hit Robots 81 | 3 30 48 Core Hits 44 | 2 10 32 Critical Kills . | . . . Critical Parts Destroyed . | . . . Critical Strikes . | . . . Melee Attacks 17 | . 7 10 Impact 17 | . 7 10 Slashing . | . . . Piercing . | . . . Sneak Attacks 1 | . . 1 Combat Hostiles . | . . . Follow-up Attacks . | . . . Damage Inflicted 1242 | 26 439 777 Guns 818 | 26 237 555 Cannons . | . . . Explosions . | . . . Melee 405 | . 183 222 Ramming 19 | . 19 . Kinetic 224 | 16 126 82 Thermal 444 | 10 111 323 Explosive . | . . . Electromagnetic 150 | . . 150 Impact 405 | . 183 222 Slashing . | . . . Piercing . | . . . Highest Corruption 15 | . . 15 Average Corruption 14 | . . 14 Corruption Purged . | . . . Corruption Blocked . | . . . Effects 17 | . . 17 Message Errors 1 | . . 1 Matter Fused 4 | . . 4 Heat Flow Errors 4 | . . 4 Energy Discharges 1 | . . 1 Data Loss (minor) 1 | . . 1 Data Loss (major) 1 | . . 1 Misfires 2 | . . 2 Alerts 2 | . . 2 Misdirections 1 | . . 1 Overload Shots . | . . . Overflow Damage 152 | . 77 75 Projectiles . | . . . Explosions . | . . . Melee 152 | . 77 75 Knockbacks 4 | . 2 2 Impact 4 | . 2 2 Kinetic . | . . . Secondary . | . . . Self-Inflicted Damage 2 | . 2 . Shots . | . . . Rammed 1 | . 1 . Targets Rammed 4 | . 4 . Kicked 3 | . 3 . Crushed . | . . . Highest Temperature 530 | 40 111 530 Average Temperature 116 | 19 45 145 Received Heat Transfer 540 | . 93 447 Effects 4 | . . 4 Shutdowns 2 | . . 2 Matter Decay 1 | . . 1 Damage (minor) 1 | . . 1 Siege Activations . | . . . Robots Corrupted 3 | . 1 2 Combat Hostiles 2 | . 1 1 Parts Fried 5 | . . 5 Impact Corruptions 9 | . 5 4 Robots Melted . | . . . Combat Hostiles . | . . . Parts Melted 2 | . . 2 Heat Transferred 840 | 25 250 565 Parts Sabotaged . | . . . Parts Stolen . | . . . Parts Stripped . | . . . Power Chain Reactions . | . . . Alert | -11 -10 -9 ------- Run | Yrd Mat Mat Peak Influence 183 | 5 138 183 Initial 3 | . 3 . Average 61 | 1 53 75 Maximum Alert Level . | . . . Low Security (%) 100 | 100 100 100 Level 1 . | . . . Level 2 . | . . . Level 3 . | . . . Level 4 . | . . . Level 5 . | . . . High Security . | . . . Max Security . | . . . Squads Dispatched 2 | . 1 1 Investigation 1 | . . 1 Extermination . | . . . Reinforcement 1 | . 1 . Assault . | . . . Garrison . | . . . Intercept . | . . . Searches Triggered . | . . . Construction Impeded . | . . . Haulers Reinforced . | . . . Active Scanning Responses . | . . . Cargo Convoy Interrupts . | . . . Stealth | -11 -10 -9 --------- Run | Yrd Mat Mat Distress Signals 2 | . . 2 Communications Jammed . | . . . Distress Signals . | . . . Times Spotted 26 | . 9 17 Peak Tracking Total 5 | . 3 5 Tactical Retreats 2 | . 1 1 Traps | -11 -10 -9 ------- Run | Yrd Mat Mat Traps Triggered 1 | . 1 . Indirectly . | . . . Trap Hack Attempts . | . . . Triggered . | . . . Disarmed . | . . . Reprogrammed . | . . . Reused . | . . . Traps Extracted . | . . . Installed . | . . . Triggered . | . . . Machines | -11 -10 -9 ---------- Run | Yrd Mat Mat Machines Disabled . | . . . Max in Single Turn . | . . . Machines Repaired . | . . . Machines Dismantled . | . . . Machines Sabotaged . | . . . Overloaded Fab Kills . | . . . Hacking | -11 -10 -9 --------- Run | Yrd Mat Mat Machines Accessed 4 | . 1 3 Terminals 3 | . 1 2 Fabricators . | . . . Repair Stations 1 | . . 1 Recycling Units . | . . . Scanalyzers . | . . . Garrison Access . | . . . Total Hacks 9 | . 2 7 Successful 5 | . . 5 Failed 4 | . 2 2 Catastrophic 2 | . 1 1 Database Lockouts . | . . . Manual 2 | . 2 . Terminals 6 | . 2 4 Fabricators . | . . . Repair Stations 3 | . . 3 Recycling Units . | . . . Scanalyzers . | . . . Garrison Access . | . . . Terminal Hacks 2 | . . 2 Record 1 | . . 1 Branch Access Points 1 | . . 1 Fabricator Hacks . | . . . Repair Station Hacks 3 | . . 3 Scan Component 1 | . . 1 Repair 1 | . . 1 Refit 1 | . . 1 Recycling Unit Hacks . | . . . Scanalyzer . | . . . Garrison Access Hacks . | . . . Unauthorized Hacks . | . . . Terminals . | . . . Fabricators . | . . . Repair Stations . | . . . Recycling Units . | . . . Scanalyzers . | . . . Garrison Access . | . . . Data Cores Recovered . | . . . Used . | . . . Hacking Detections 4 | . 1 3 Full Trace Events 2 | . 1 1 Feedback Events . | . . . Feedback Blocked . | . . . Robot Schematics Acquired . | . . . Robots Built . | . . . Authchips . | . . . Time . | . . . Total Robot Build Rating . | . . . Part Schematics Acquired . | . . . Parts Built . | . . . Authchips . | . . . Time . | . . . Total Part Build Rating . | . . . Parts Repaired 1 | . . 1 Time 26 | . . 26 Parts Recycled . | . . . Recycled Matter . | . . . Retrieved Matter . | . . . Retrieved Components . | . . . Parts Scanalyzed . | . . . Part Schematics Acquired . | . . . Parts Damaged . | . . . Bothacking | -11 -10 -9 ------------ Run | Yrd Mat Mat Used RIF Installer . | . . . Robots Hacked . | . . . Non-combat . | . . . Combat . | . . . Robot Hacks Applied . | . . . Relay Couplers Released . | . . . Fabnet Peak Effective % . | . . . Robots Rewired . | . . . Allies Hacked . | . . . Hacks Repelled . | . . . Allies | -11 -10 -9 -------- Run | Yrd Mat Mat Total Allies . | . . . Largest Group . | . . . Highest-Rated Group . | . . . Highest-Rated Ally . | . . . Total Orders . | . . . Ally Attacks . | . . . Total Damage . | . . . Kills . | . . . Allies Corrupted . | . . . Allies Melted . | . . . Intel | -11 -10 -9 ------- Run | Yrd Mat Mat Robot Analysis Total . | . . . Derelict Logs Recovered . | . . . Drone Launches . | . . . Drone Recoveries . | . . . Exploration | -11 -10 -9 ------------- Run | Yrd Mat Mat Turns Passed 1177 | 88 486 603 Spaces Moved 676 | 61 398 217 Core 121 | 6 99 16 Treads . | . . . Legs 321 | 55 130 136 Wheels . | . . . Hover 65 | . . 65 Flight 169 | . 169 . Fastest Speed 32 | 50 32 50 Average Speed 134 | 113 98 207 Slowest Speed 350 | 120 195 350 Overloaded Moves . | . . . Propulsion Burnouts . | . . . Robots Hopped . | . . . Cave-ins Triggered . | . . . Exploration Rate (%) 21 | 5 48 12 Regions Visited 2 Branch Regions . Pre-discovered Areas . | . . . Known Exits Taken . | . . . Unknown Exits Taken 2 | 1 1 . Scrap Searched . | . . . Spaces Dug . | . . . Terrain Destroyed . | . . . Melee . | . . . Projectile . | . . . AOE . | . . . Terrain Rammed . | . . . Walls Destroyed . | . . . Machines Disabled . | . . . Actions | -11 -10 -9 --------- Run | Yrd Mat Mat Total 830 | 72 455 303 Wait 18 | 4 1 13 Move 674 | 60 397 217 Hop . | . . . Pick Up 3 | . 2 1 Fast Attach 30 | 5 10 15 Attach 7 | . 2 5 Detach 11 | . 8 3 Swap 2 | . . 2 Drop 9 | . 6 3 Fire 55 | 3 18 34 Melee 17 | . 7 10 Ram 1 | . 1 . Kick 3 | . 3 . Crush . | . . . Escape Stasis . | . . . Rewire . | . . . Trap . | . . . Miscellaneous . | . . . Route ------- -11/Scrapyard -10/Materials -9/Materials (discovered 1 exit: Min) History --------- Turn | Location | Event 3 | -11/Scrapyard | Discovered new exit (range 15) 89 | -11/Scrapyard | Entered Materials 566 | -10/Materials | Discovered new exit (range 3) 575 | -10/Materials | Entered another Materials area 575 | -9/Materials | Evolved 2 slots: Power x1, Weapon x1 612 | -9/Materials | Identified exit to Mines 629 | -9/Materials | Build established: Mutant 771 | -9/Materials | System corruption reached 10% 792 | -9/Materials | Core integrity fell below 50% 831 | -9/Materials | Lost 6 parts (2p1n2u1w) 872 | -9/Materials | Core integrity fell below 20% 982 | -9/Materials | Repaired Aluminum Leg? 1178 | -9/Materials | Destroyed by S-10 Pest with Light Assault Rifle Last Messages --------------- 01141_ Extracted 51 matter. 01142_ K-01 Serf collects debris. 01144_ Y-45 Defender destroyed. 01145_ ::LJRC9GNDYMZCWDJVTJF 01146_ K-01 Serf collects debris. 01153_ Heat Sink destroyed. 01156_ K-01 Serf collects debris. 01157_ G-34 Mercenary destroyed. 01159_ K-01 Serf collects debris. 01162_ Acquired Heat Sink. 01163_ K-01 Serf collects debris. 01168_ Acquired Hvy. Assault Rifle. 01170_ K-01 Serf collects debris. 01170_ Acquired 28 matter. 01171_ System corrupted: FCS attempts to trigger Hvy. Assault Rifle. 01171_ System corrupted: Hvy. Assault Rifle misfires. 01172_ Backup Propulsion I destroyed. 01174_ K-01 Serf collects debris. Map ----- +----------------------------------------------------+ | ?????????????????##** #!= ##???????? | | ?????????????????##*] # # ???????? | | ?????????????????######## # ???????? | | ?????????????????## # # ???????? | | ??????????????????#"" + # ???????? | | ??????????????????#"T # # ???????? | | ??????????????????#"" # + ???????? | | ??????????????????# # # ???????? | | ??????????????????# # # ???????? | | ??????????????????# # # ???????? | | ?????????????????###+#### # ???????? | | ?????????????????# / + u ##???????? | | ?????????????????# # ##???????? | | ?????????????????# """ #r #????????? | | ?????????????????# "R= =# #????????? | | ?????????????????# """ # #????????? | | ?????????????????# # #????????? | | ?????????????????#####+## #????????? | | ?????????????????????# #????????? | | ?????????????????????# ########## | | ?????????????????????# # # | | ?????????????????????# # T # | | ?????????????????????# # % # | | ?????????????????????#! # # | | ?????????????????????#%* # """ # | | ?????????????????????#= @ + """"" # | | ?????????????????????# # """"" # | | ???????????????# #####% % # """"" # | | ????????? s k%[*# """ # | | ?????????????### #########+##########? | | ?????????????????????# #?????? | | ?????????????????????# "" #?????? | | ?????????????????????# """#?????? | | ?????????????????????# S"#?????? | | ?????????????????????# ]] #?????? | | ?????????????????????# ]] #?????? | | ?????????????????????# #?????? | | ?????????????????????# #?????? | | ?????????????????????######## ##?????? | | ?????????????????????????????##??????? | | ?????????????????????????????????????? | | ?????????????????????????????????????? | | ?????????????????????????????????????? | | ?????????????????????????????????????? | | ?????????????????????????????????????? | | ?????????????????????????????????????? | | ?????????????????????????????????????? | | ?????????????????????????????????????? | | ?????????????????????????????????????? | | ?????????????????????????????????????? | +----------------------------------------------------+ Best States ------------- Heat Dissipation 39 Energy Generation 19 Energy Capacity 430 Matter Stores 300 Matter Capacity 300 Sight Range 16 Robot Scan Range 14 Terrain Scan Density 10 Armor Coverage 150 Evasion (%) 63 Item Schematics ----------------- None Robot Schematics ------------------ None Fabricated ------------ Nothing Alien Tech Used ----------------- None Achievements -------------- None Challenges ------------ None Game ------ Seed StasisInsulationCharger Manual? 0 Play Time 00:18:06 Cumulative 6.0 hours Start 2024.08.23 @ 15:50:11 End 2024.08.23 @ 16:10:00 Sessions 1 Manual Loads 0 Difficulty Rogue Special Mode None Game No. 18 Rogue 17 Adventurer 1 Explorer 0 Win Type - Total 0 Types 0/0/0/0/0/0/0/0/0 Lore% 1 Gallery% 10 Achievement% 9 Wizard Run 0 Options --------- Layout 2 ASCII 0 Keyboard 1 Movement Arrows Keybinds 0 Fullscreen 1 Font 24/Smallcaps Map View 50x44 Zoom Use 0% Tactical HUD 1 Map Filters NONE Filters NONE Steam 1 RUN: 7b259dcb-566b-4810-a958-e975064e1d26